[Event "2026 European Womens Championship"]
[Site "Batumi, GE"]
[Date "2026.06.02"]
[Round "8"]
[White "Sieber, Fiona"]
[Black "Efroimski, Marsel"]
[Result "1/2-1/2"]
[Board "14"]
[TimeControl "5400+30"]
[WhiteFideId "12902373"]
[BlackFideId "2810964"]
[WhiteElo "2224"]
[BlackElo "2386"]
[WhiteTitle "WGM"]
[BlackTitle "IM"]
[WhiteClock "0:12:25"]
[BlackClock "0:12:04"]
[Variant "Standard"]

1. e4 {[%clk 1:30:57]}  e6 {[%clk 1:27:15]} 2. d4 {[%clk 1:31:21]}  d5 {[%clk 1:27:37]} 3. e5 {[%clk 1:31:46]}  c5 {[%clk 1:28:03]}
4. c3 {[%clk 1:32:13]}  Nc6 {[%clk 1:28:30]} 5. Nf3 {[%clk 1:32:39]}  Bd7 {[%clk 1:27:01]} 6. Be2 {[%clk 1:33:04]}  Nge7 {[%clk 1:27:17]}
7. Na3 {[%clk 1:32:47]}  cxd4 {[%clk 1:27:16]} 8. cxd4 {[%clk 1:33:11]}  Nf5 {[%clk 1:27:43]} 9. O-O {[%clk 1:32:48]}  Be7 {[%clk 1:14:20]}
10. Nc2 {[%clk 1:32:50]}  O-O {[%clk 1:14:28]} 11. Bd3 {[%clk 1:33:10]}  f6 {[%clk 1:14:44]} 12. Bxf5 {[%clk 1:33:12]}  exf5 {[%clk 1:14:31]}
13. Re1 {[%clk 1:33:30]}  Rc8 {[%clk 1:12:27]} 14. Bf4 {[%clk 1:31:13]}  g5 {[%clk 1:03:49]} 15. exf6 {[%clk 1:26:56]}  Bxf6 {[%clk 1:02:57]}
16. Bd6 {[%clk 1:25:50]}  Re8 {[%clk 1:02:23]} 17. Ne5 {[%clk 1:24:58]}  Be6 {[%clk 0:57:10]} 18. Nxc6 {[%clk 1:23:23]}  Rxc6 {[%clk 0:54:02]}
19. Be5 {[%clk 1:23:14]}  Be7 {[%clk 0:54:16]} 20. Ne3 {[%clk 1:09:11]}  Qd7 {[%clk 0:52:08]} 21. h3 {[%clk 1:05:22]}  f4 {[%clk 0:45:00]}
22. Ng4 {[%clk 1:04:47]}  Bxg4 {[%clk 0:41:36]} 23. hxg4 {[%clk 0:56:08]}  Bb4 {[%clk 0:37:11]} 24. Rf1 {[%clk 0:56:34]}  Rh6 {[%clk 0:29:46]}
25. Rc1 {[%clk 0:55:43]}  Ba5 {[%clk 0:29:45]} 26. Qf3 {[%clk 0:49:16]}  Bb6 {[%clk 0:28:47]} 27. Rfe1 {[%clk 0:48:05]}  Rhe6 {[%clk 0:14:59]}
28. Red1 {[%clk 0:43:14]}  Rh6 {[%clk 0:14:32]} 29. a4 {[%clk 0:40:12]}  Rh4 {[%clk 0:06:16]} 30. a5 {[%clk 0:27:07]}  Bxa5 {[%clk 0:06:42]}
31. Rc5 {[%clk 0:27:05]}  Bb6 {[%clk 0:06:28]} 32. Rxd5 {[%clk 0:25:09]}  Qxg4 {[%clk 0:06:50]} 33. Qxg4 {[%clk 0:18:44]}  Rxg4 {[%clk 0:07:19]}
34. f3 {[%clk 0:17:00]}  Rh4 {[%clk 0:07:30]} 35. Bf6 {[%clk 0:16:27]}  h6 {[%clk 0:03:57]} 36. Rd7 {[%clk 0:15:06]}  Re6 {[%clk 0:04:03]}
37. Be7 {[%clk 0:11:20]}  Rh5 {[%clk 0:02:36]} 38. Rxb7 {[%clk 0:08:46]}  g4 {[%clk 0:02:00]} 39. Bc5 {[%clk 0:05:06]}  gxf3 {[%clk 0:01:53]}
40. Bxb6 {[%clk 0:04:52]}  fxg2 {[%clk 0:00:47]} 41. Kxg2 {[%clk 0:01:17]}  axb6 {[%clk 0:00:37]} 42. Rc1 {[%clk 0:28:08]}  Rf5 {[%clk 0:29:55]}
43. Kf3 {[%clk 0:22:05]}  Re3+ {[%clk 0:23:35]} 44. Kg4 {[%clk 0:17:25]}  Rf8 {[%clk 0:23:55]} 45. Rxb6 {[%clk 0:18:04]}  f3 {[%clk 0:12:03]}
46. Rc7 {[%clk 0:12:50]}  f2 {[%clk 0:10:44]} 47. Rg6+ {[%clk 0:13:14]}  Kh8 {[%clk 0:11:11]} 48. Rxh6+ {[%clk 0:13:27]}  Kg8 {[%clk 0:11:38]}
49. Rg6+ {[%clk 0:13:27]}  Kh8 {[%clk 0:12:04]} 50. Rh6+ {[%clk 0:12:25]} 1/2-1/2

[Event "2026 European Womens Championship"]
[Site "Batumi, GE"]
[Date "2026.06.02"]
[Round "8"]
[White "Jarocka, Liwia"]
[Black "Klek, Hanna Marie"]
[Result "1/2-1/2"]
[Board "15"]
[TimeControl "5400+30"]
[WhiteFideId "21807558"]
[BlackFideId "24670057"]
[WhiteElo "2288"]
[BlackElo "2369"]
[WhiteTitle "FM"]
[BlackTitle "WGM"]
[WhiteClock "0:24:09"]
[BlackClock "0:20:45"]
[Variant "Standard"]

1. e4 {[%clk 1:30:55]}  e5 {[%clk 1:30:54]} 2. Nf3 {[%clk 1:31:10]}  Nc6 {[%clk 1:31:18]} 3. Nc3 {[%clk 1:31:18]}  Nf6 {[%clk 1:31:39]}
4. Bb5 {[%clk 1:31:26]}  Bc5 {[%clk 1:29:42]} 5. O-O {[%clk 1:31:21]}  d6 {[%clk 1:27:32]} 6. d4 {[%clk 1:30:45]}  exd4 {[%clk 1:27:41]}
7. Nxd4 {[%clk 1:31:10]}  Bd7 {[%clk 1:27:13]} 8. Nb3 {[%clk 1:28:07]}  Bb6 {[%clk 1:23:46]} 9. Bg5 {[%clk 1:24:12]}  h6 {[%clk 1:19:34]}
10. Bh4 {[%clk 1:24:17]}  g5 {[%clk 1:17:44]} 11. Bg3 {[%clk 1:24:36]}  Ne5 {[%clk 1:16:36]} 12. Bxd7+ {[%clk 1:19:33]}  Qxd7 {[%clk 1:16:28]}
13. a4 {[%clk 1:19:47]}  a6 {[%clk 1:11:45]} 14. Kh1 {[%clk 1:13:54]}  O-O-O {[%clk 0:59:50]} 15. Qe2 {[%clk 1:00:06]}  Qe6 {[%clk 0:38:52]}
16. Rae1 {[%clk 0:47:22]}  Ng6 {[%clk 0:43:53]} 17. f4 {[%clk 0:43:42]}  gxf4 {[%clk 0:43:06]} 18. Bxf4 {[%clk 0:44:08]}  d5 {[%clk 0:28:51]}
19. Bg3 {[%clk 0:38:25]}  d4 {[%clk 0:28:11]} 20. e5 {[%clk 0:35:20]}  Ng4 {[%clk 0:26:20]} 21. Ne4 {[%clk 0:34:36]}  Ne3 {[%clk 0:24:51]}
22. Rf6 {[%clk 0:30:09]}  Qd5 {[%clk 0:24:42]} 23. Rxb6 {[%clk 0:20:49]}  Qxe4 {[%clk 0:20:40]} 24. Rb4 {[%clk 0:19:42]}  Qxc2 {[%clk 0:15:06]}
25. Qf3 {[%clk 0:19:25]}  Qc6 {[%clk 0:14:18]} 26. Qxc6 {[%clk 0:14:53]}  bxc6 {[%clk 0:14:43]} 27. Rxd4 {[%clk 0:15:17]}  Nc2 {[%clk 0:13:27]}
28. Rxd8+ {[%clk 0:15:21]}  Rxd8 {[%clk 0:13:55]} 29. Rc1 {[%clk 0:14:51]}  Rd5 {[%clk 0:13:00]} 30. Kg1 {[%clk 0:13:50]}  Nb4 {[%clk 0:11:25]}
31. Rc4 {[%clk 0:12:54]}  Nd3 {[%clk 0:11:37]} 32. Rxc6 {[%clk 0:12:26]}  Kb7 {[%clk 0:09:35]} 33. Rf6 {[%clk 0:09:30]}  Ndxe5 {[%clk 0:09:32]}
34. h3 {[%clk 0:08:20]}  h5 {[%clk 0:08:28]} 35. Bf2 {[%clk 0:07:38]}  Rd1+ {[%clk 0:07:49]} 36. Kh2 {[%clk 0:08:03]}  Rf1 {[%clk 0:04:02]}
37. Nc5+ {[%clk 0:07:52]}  Kb8 {[%clk 0:03:01]} 38. Nxa6+ {[%clk 0:07:57]}  Kc8 {[%clk 0:03:24]} 39. Bh4 {[%clk 0:06:52]}  Ra1 {[%clk 0:03:24]}
40. Bg3 {[%clk 0:06:06]}  Rxa4 {[%clk 0:03:33]} 41. Nc5 {[%clk 0:06:16]}  Rc4 {[%clk 0:30:22]} 42. b4 {[%clk 0:28:50]}  h4 {[%clk 0:23:04]}
43. Bxe5 {[%clk 0:25:08]}  Nxe5 {[%clk 0:23:27]} 44. Rf5 {[%clk 0:25:15]}  Nd7 {[%clk 0:23:19]} 45. Rxf7 {[%clk 0:24:21]}  Nxc5 {[%clk 0:23:40]}
46. bxc5 {[%clk 0:24:48]}  Rxc5 {[%clk 0:23:56]} 47. Rf4 {[%clk 0:25:12]}  Rh5 {[%clk 0:24:18]} 48. g3 {[%clk 0:25:22]}  hxg3+ {[%clk 0:24:33]}
49. Kxg3 {[%clk 0:25:49]}  Kd7 {[%clk 0:24:34]} 50. h4 {[%clk 0:26:13]}  Ke6 {[%clk 0:21:34]} 51. Kg4 {[%clk 0:23:49]}  Rh7 {[%clk 0:21:11]}
52. h5 {[%clk 0:24:11]}  Rg7+ {[%clk 0:20:43]} 53. Kh4 {[%clk 0:24:34]}  Rf7 {[%clk 0:20:34]} 54. Ra4 {[%clk 0:24:25]}  Kf6 {[%clk 0:20:30]}
55. Rc4 {[%clk 0:24:45]}  Kg7 {[%clk 0:20:45]} 56. Rc6 {[%clk 0:24:09]} 1/2-1/2

[Event "2026 European Womens Championship"]
[Site "Batumi, GE"]
[Date "2026.06.02"]
[Round "8"]
[White "Beydullayeva, Govhar"]
[Black "Zimina, Olga"]
[Result "1/2-1/2"]
[Board "16"]
[TimeControl "5400+30"]
[WhiteFideId "13413015"]
[BlackFideId "4132190"]
[WhiteElo "2368"]
[BlackElo "2290"]
[WhiteTitle "WGM"]
[BlackTitle "IM"]
[WhiteClock "0:02:10"]
[BlackClock "0:05:35"]
[Variant "Standard"]

1. d4 {[%clk 1:30:58]}  d5 {[%clk 1:30:50]} 2. Nf3 {[%clk 1:31:22]}  Nf6 {[%clk 1:30:59]} 3. Bf4 {[%clk 1:31:45]}  c5 {[%clk 1:31:15]}
4. e3 {[%clk 1:32:09]}  Nc6 {[%clk 1:31:36]} 5. Nbd2 {[%clk 1:32:33]}  Bg4 {[%clk 1:31:50]} 6. c3 {[%clk 1:32:09]}  e6 {[%clk 1:32:05]}
7. h3 {[%clk 1:31:29]}  Bh5 {[%clk 1:31:19]} 8. Qb3 {[%clk 1:18:18]}  Qc8 {[%clk 1:31:21]} 9. g4 {[%clk 1:14:04]}  Bg6 {[%clk 1:30:27]}
10. Nh4 {[%clk 1:12:02]}  cxd4 {[%clk 1:18:42]} 11. exd4 {[%clk 1:11:02]}  Qd7 {[%clk 1:14:57]} 12. Be5 {[%clk 0:57:58]}  Ne4 {[%clk 1:05:10]}
13. Nxg6 {[%clk 0:52:18]}  Nxd2 {[%clk 1:05:19]} 14. Nxf8 {[%clk 0:42:19]}  Nxb3 {[%clk 1:00:16]} 15. Nxd7 {[%clk 0:42:46]}  Nxa1 {[%clk 0:59:34]}
16. Bxg7 {[%clk 0:26:40]}  Kxd7 {[%clk 0:58:51]} 17. Bxh8 {[%clk 0:27:07]}  Rxh8 {[%clk 0:58:49]} 18. Kd2 {[%clk 0:27:19]}  h5 {[%clk 0:51:45]}
19. g5 {[%clk 0:27:19]}  f6 {[%clk 0:41:06]} 20. f4 {[%clk 0:19:46]}  fxg5 {[%clk 0:33:27]} 21. fxg5 {[%clk 0:20:16]}  h4 {[%clk 0:29:29]}
22. Bd3 {[%clk 0:18:50]}  Rg8 {[%clk 0:18:54]} 23. g6 {[%clk 0:18:15]}  e5 {[%clk 0:19:14]} 24. Bf5+ {[%clk 0:14:14]}  Kd6 {[%clk 0:18:08]}
25. dxe5+ {[%clk 0:09:28]}  Nxe5 {[%clk 0:17:51]} 26. Rxa1 {[%clk 0:09:32]}  Rf8 {[%clk 0:17:46]} 27. g7 {[%clk 0:02:02]}  Rg8 {[%clk 0:18:02]}
28. Rf1 {[%clk 0:02:03]}  Rxg7 {[%clk 0:17:53]} 29. Ke2 {[%clk 0:01:05]}  Nc4 {[%clk 0:07:09]} 30. b3 {[%clk 0:01:31]}  Re7+ {[%clk 0:05:08]}
31. Kd3 {[%clk 0:01:59]}  Ne3 {[%clk 0:04:32]} 32. Rf3 {[%clk 0:02:21]}  Nxf5 {[%clk 0:04:21]} 33. Rxf5 {[%clk 0:00:46]}  Rg7 {[%clk 0:04:45]}
34. Ke3 {[%clk 0:00:37]}  Rg2 {[%clk 0:04:20]} 35. Rf2 {[%clk 0:01:02]}  Rg3+ {[%clk 0:04:46]} 36. Rf3 {[%clk 0:01:30]}  Rg2 {[%clk 0:05:11]}
37. Rf2 {[%clk 0:01:43]}  Rg3+ {[%clk 0:05:35]} 38. Rf3 {[%clk 0:02:10]}  Ke5 {[%clk 0:05:27]} 1/2-1/2

[Event "2026 European Womens Championship"]
[Site "Batumi, GE"]
[Date "2026.06.02"]
[Round "8"]
[White "Radeva, Viktoria"]
[Black "Mkrtchian, Lilit"]
[Result "1/2-1/2"]
[Board "17"]
[TimeControl "5400+30"]
[WhiteFideId "2915405"]
[BlackFideId "13300601"]
[WhiteElo "2242"]
[BlackElo "2366"]
[WhiteTitle "WGM"]
[BlackTitle "IM"]
[WhiteClock "0:01:38"]
[BlackClock "0:02:15"]
[Variant "Standard"]

1. e4 {[%clk 1:30:56]}  d6 {[%clk 1:30:40]} 2. d4 {[%clk 1:31:20]}  Nf6 {[%clk 1:30:56]} 3. Nc3 {[%clk 1:31:45]}  e5 {[%clk 1:31:10]}
4. Nf3 {[%clk 1:31:58]}  Nbd7 {[%clk 1:31:25]} 5. Bc4 {[%clk 1:32:00]}  Be7 {[%clk 1:31:40]} 6. O-O {[%clk 1:32:10]}  O-O {[%clk 1:32:01]}
7. a4 {[%clk 1:32:29]}  exd4 {[%clk 1:31:11]} 8. Qxd4 {[%clk 1:32:35]}  Nc5 {[%clk 1:30:45]} 9. h3 {[%clk 1:31:00]}  Be6 {[%clk 1:31:02]}
10. Re1 {[%clk 1:27:27]}  c6 {[%clk 1:23:13]} 11. Be3 {[%clk 0:55:50]}  Nfd7 {[%clk 0:50:20]} 12. Bf1 {[%clk 0:51:55]}  f5 {[%clk 0:38:02]}
13. exf5 {[%clk 0:40:20]}  Bxf5 {[%clk 0:38:05]} 14. Qd1 {[%clk 0:37:28]}  a5 {[%clk 0:34:17]} 15. Nd4 {[%clk 0:34:46]}  Bg6 {[%clk 0:33:30]}
16. Qd2 {[%clk 0:31:55]}  d5 {[%clk 0:27:48]} 17. Bf4 {[%clk 0:28:13]}  Nf6 {[%clk 0:27:11]} 18. Bd3 {[%clk 0:18:09]}  Bxd3 {[%clk 0:20:31]}
19. cxd3 {[%clk 0:18:33]}  Qd7 {[%clk 0:20:46]} 20. Be5 {[%clk 0:15:11]}  Rae8 {[%clk 0:19:03]} 21. Rad1 {[%clk 0:13:30]}  Bd6 {[%clk 0:17:16]}
22. Bxd6 {[%clk 0:11:38]}  Qxd6 {[%clk 0:17:31]} 23. Nce2 {[%clk 0:07:22]}  Nxa4 {[%clk 0:11:14]} 24. b3 {[%clk 0:07:04]}  Nc5 {[%clk 0:11:13]}
25. Qxa5 {[%clk 0:07:17]}  Nfd7 {[%clk 0:10:46]} 26. Qc3 {[%clk 0:01:48]}  Qf6 {[%clk 0:09:38]} 27. Rf1 {[%clk 0:01:50]}  Ne6 {[%clk 0:02:53]}
28. Nxe6 {[%clk 0:01:19]}  Qxc3 {[%clk 0:02:40]} 29. Nxc3 {[%clk 0:01:48]}  Rxe6 {[%clk 0:03:05]} 30. d4 {[%clk 0:01:24]}  Ra8 {[%clk 0:02:15]}
31. Ra1 {[%clk 0:01:38]} 1/2-1/2

[Event "2026 European Womens Championship"]
[Site "Batumi, GE"]
[Date "2026.06.02"]
[Round "8"]
[White "Mkrtchyan, Mariam"]
[Black "Krasteva, Beloslava"]
[Result "1-0"]
[Board "18"]
[TimeControl "5400+30"]
[WhiteFideId "13310828"]
[BlackFideId "2922029"]
[WhiteElo "2365"]
[BlackElo "2285"]
[WhiteTitle "WGM"]
[BlackTitle "WGM"]
[WhiteClock "0:09:49"]
[BlackClock "0:02:33"]
[Variant "Standard"]

1. e4 {[%clk 1:28:29]}  d6 {[%clk 1:30:55]} 2. d4 {[%clk 1:28:44]}  Nf6 {[%clk 1:31:18]} 3. Nc3 {[%clk 1:29:03]}  e5 {[%clk 1:31:32]}
4. h3 {[%clk 1:29:12]}  Be7 {[%clk 1:27:36]} 5. dxe5 {[%clk 1:29:05]}  dxe5 {[%clk 1:27:45]} 6. Qxd8+ {[%clk 1:29:29]}  Bxd8 {[%clk 1:26:56]}
7. Nf3 {[%clk 1:29:29]}  Nbd7 {[%clk 1:25:13]} 8. a4 {[%clk 1:25:03]}  a5 {[%clk 1:18:45]} 9. Be3 {[%clk 1:24:44]}  c6 {[%clk 1:17:48]}
10. Bc4 {[%clk 1:20:46]}  O-O {[%clk 1:16:31]} 11. g4 {[%clk 1:18:31]}  Be7 {[%clk 1:14:57]} 12. g5 {[%clk 1:15:08]}  Nh5 {[%clk 1:11:52]}
13. O-O-O {[%clk 1:14:30]}  Re8 {[%clk 1:02:47]} 14. Rd2 {[%clk 1:07:38]}  b6 {[%clk 0:41:54]} 15. Rhd1 {[%clk 1:02:38]}  Ra7 {[%clk 0:40:58]}
16. Nb5 {[%clk 1:00:51]}  Rb7 {[%clk 0:39:59]} 17. Nd6 {[%clk 1:00:00]}  Bxd6 {[%clk 0:40:23]} 18. Rxd6 {[%clk 1:00:26]}  Rc7 {[%clk 0:39:38]}
19. Bf1 {[%clk 0:41:00]}  Kf8 {[%clk 0:36:19]} 20. Nd2 {[%clk 0:40:34]}  Nc5 {[%clk 0:28:59]} 21. Nc4 {[%clk 0:35:13]}  Nxe4 {[%clk 0:25:49]}
22. Bxb6 {[%clk 0:34:33]}  Rb7 {[%clk 0:24:14]} 23. Rd8 {[%clk 0:27:41]}  Be6 {[%clk 0:23:58]} 24. Bxa5 {[%clk 0:22:07]}  Ra7 {[%clk 0:19:37]}
25. Bb4+ {[%clk 0:19:41]}  c5 {[%clk 0:20:00]} 26. Ba3 {[%clk 0:19:25]}  Rxd8 {[%clk 0:16:54]} 27. Rxd8+ {[%clk 0:19:48]}  Ke7 {[%clk 0:17:21]}
28. Rb8 {[%clk 0:17:24]}  Rxa4 {[%clk 0:16:21]} 29. Rb7+ {[%clk 0:16:14]}  Kd8 {[%clk 0:14:54]} 30. Nxe5 {[%clk 0:15:48]}  Kc8 {[%clk 0:12:49]}
31. Rb6 {[%clk 0:15:18]}  Nf4 {[%clk 0:08:57]} 32. f3 {[%clk 0:13:11]}  Nxg5 {[%clk 0:02:58]} 33. h4 {[%clk 0:12:51]}  Ngh3 {[%clk 0:02:54]}
34. Ba6+ {[%clk 0:08:49]}  Kc7 {[%clk 0:02:20]} 35. Bxc5 {[%clk 0:08:13]}  Bd5 {[%clk 0:01:20]} 36. b4 {[%clk 0:06:07]}  Ne6 {[%clk 0:01:01]}
37. c4 {[%clk 0:05:34]}  Nxc5 {[%clk 0:00:52]} 38. bxc5 {[%clk 0:06:00]}  Ba8 {[%clk 0:00:37]} 39. Kb2 {[%clk 0:03:22]}  f6 {[%clk 0:00:35]}
40. Nd3 {[%clk 0:00:37]}  Bxf3 {[%clk 0:00:40]} 41. Bb5 {[%clk 0:27:46]}  Ra8 {[%clk 0:27:11]} 42. Re6 {[%clk 0:26:30]}  g5 {[%clk 0:19:43]}
43. Rxf6 {[%clk 0:23:00]}  Be4 {[%clk 0:05:21]} 44. Rf7+ {[%clk 0:22:29]}  Kd8 {[%clk 0:05:21]} 45. c6 {[%clk 0:18:25]}  Rc8 {[%clk 0:03:50]}
46. Rd7+ {[%clk 0:17:58]}  Ke8 {[%clk 0:04:18]} 47. c7 {[%clk 0:18:22]}  Bf5 {[%clk 0:02:43]} 48. Rd5+ {[%clk 0:10:01]}  Ke7 {[%clk 0:02:08]}
49. Rxf5 {[%clk 0:10:25]}  g4 {[%clk 0:02:33]} 50. Nf4 {[%clk 0:09:49]} 1-0

[Event "2026 European Womens Championship"]
[Site "Batumi, GE"]
[Date "2026.06.02"]
[Round "8"]
[White "Pogorelskikh, Sofia"]
[Black "Bivol, Alina"]
[Result "1/2-1/2"]
[Board "19"]
[TimeControl "5400+30"]
[WhiteFideId "44164548"]
[BlackFideId "4100123"]
[WhiteElo "2284"]
[BlackElo "2361"]
[WhiteTitle "WGM"]
[BlackTitle "IM"]
[WhiteClock "0:01:58"]
[BlackClock "0:10:05"]
[Variant "Standard"]

1. e4 {[%clk 1:30:53]}  e6 {[%clk 1:30:19]} 2. d4 {[%clk 1:31:09]}  d5 {[%clk 1:30:16]} 3. Nc3 {[%clk 1:31:23]}  Nc6 {[%clk 1:30:41]}
4. Nf3 {[%clk 1:25:38]}  Nf6 {[%clk 1:31:05]} 5. e5 {[%clk 1:19:38]}  Ne4 {[%clk 1:31:28]} 6. Bd3 {[%clk 1:17:25]}  Bb4 {[%clk 1:31:54]}
7. Bd2 {[%clk 1:16:14]}  Bxc3 {[%clk 1:32:16]} 8. bxc3 {[%clk 1:15:42]}  b6 {[%clk 1:30:56]} 9. O-O {[%clk 1:11:49]}  Bb7 {[%clk 1:31:25]}
10. a4 {[%clk 1:08:46]}  Na5 {[%clk 1:30:12]} 11. Qe2 {[%clk 1:01:42]}  h6 {[%clk 1:28:44]} 12. Bb5+ {[%clk 0:56:02]}  c6 {[%clk 1:20:04]}
13. Bd3 {[%clk 0:55:27]}  Nxd2 {[%clk 1:16:09]} 14. Nxd2 {[%clk 0:54:19]}  c5 {[%clk 1:16:29]} 15. dxc5 {[%clk 0:51:42]}  bxc5 {[%clk 1:16:36]}
16. c4 {[%clk 0:47:56]}  dxc4 {[%clk 1:07:40]} 17. Nxc4 {[%clk 0:46:12]}  Nxc4 {[%clk 1:07:53]} 18. Bxc4 {[%clk 0:46:33]}  O-O {[%clk 1:08:12]}
19. a5 {[%clk 0:41:00]}  Qc7 {[%clk 1:05:13]} 20. a6 {[%clk 0:35:59]}  Bc6 {[%clk 1:05:20]} 21. Qe3 {[%clk 0:34:51]}  Rac8 {[%clk 0:58:57]}
22. Rfd1 {[%clk 0:32:12]}  Ba8 {[%clk 0:52:57]} 23. Rd6 {[%clk 0:28:26]}  Rb8 {[%clk 0:52:51]} 24. Rad1 {[%clk 0:27:08]}  Rb4 {[%clk 0:52:10]}
25. Qd3 {[%clk 0:25:00]}  Rbb8 {[%clk 0:46:56]} 26. f4 {[%clk 0:19:19]}  Qe7 {[%clk 0:39:48]} 27. Rd7 {[%clk 0:15:57]}  Qh4 {[%clk 0:40:07]}
28. Bxe6 {[%clk 0:14:38]}  Qxf4 {[%clk 0:38:46]} 29. Qg6 {[%clk 0:07:59]}  Qe3+ {[%clk 0:35:38]} 30. Kh1 {[%clk 0:08:10]}  Qxe5 {[%clk 0:33:56]}
31. Rxf7 {[%clk 0:07:49]}  Rxf7 {[%clk 0:34:13]} 32. Bxf7+ {[%clk 0:05:23]}  Kh8 {[%clk 0:34:36]} 33. Qg3 {[%clk 0:05:12]}  Qb2 {[%clk 0:27:31]}
34. Bg6 {[%clk 0:04:55]}  Qb6 {[%clk 0:25:26]} 35. h4 {[%clk 0:01:57]}  Rd8 {[%clk 0:24:03]} 36. Re1 {[%clk 0:01:32]}  Qxa6 {[%clk 0:23:05]}
37. h5 {[%clk 0:01:43]}  Bd5 {[%clk 0:20:02]} 38. Qc7 {[%clk 0:01:38]}  Qf6 {[%clk 0:19:44]} 39. Qe7 {[%clk 0:01:03]}  a5 {[%clk 0:05:51]}
40. Qxf6 {[%clk 0:00:39]}  gxf6 {[%clk 0:06:20]} 41. Kg1 {[%clk 0:26:06]}  Ra8 {[%clk 0:33:49]} 42. Rd1 {[%clk 0:24:16]}  Bg8 {[%clk 0:30:36]}
43. Ra1 {[%clk 0:24:06]}  a4 {[%clk 0:29:44]} 44. Ra3 {[%clk 0:23:44]}  Bh7 {[%clk 0:28:04]} 45. Bxh7 {[%clk 0:24:01]}  Kxh7 {[%clk 0:28:33]}
46. Kf2 {[%clk 0:22:55]}  f5 {[%clk 0:27:00]} 47. Ke3 {[%clk 0:22:33]}  Kg7 {[%clk 0:27:23]} 48. Kd3 {[%clk 0:22:18]}  Kf6 {[%clk 0:27:09]}
49. Kc4 {[%clk 0:22:06]}  Ra5 {[%clk 0:25:14]} 50. Kd5 {[%clk 0:21:43]}  Kg5 {[%clk 0:20:43]} 51. c4 {[%clk 0:21:05]}  Kxh5 {[%clk 0:15:32]}
52. Kc6 {[%clk 0:21:11]}  Kg5 {[%clk 0:11:32]} 53. Kb6 {[%clk 0:21:22]}  Ra8 {[%clk 0:12:01]} 54. Kxc5 {[%clk 0:21:32]}  Kf4 {[%clk 0:12:27]}
55. Kd5 {[%clk 0:17:52]}  Rd8+ {[%clk 0:10:06]} 56. Ke6 {[%clk 0:17:49]}  Re8+ {[%clk 0:05:17]} 57. Kd6 {[%clk 0:11:41]}  Re2 {[%clk 0:03:57]}
58. g3+ {[%clk 0:11:33]}  Kg4 {[%clk 0:02:46]} 59. c5 {[%clk 0:11:37]}  Rd2+ {[%clk 0:02:19]} 60. Ke5 {[%clk 0:09:43]}  Re2+ {[%clk 0:02:04]}
61. Kd6 {[%clk 0:09:42]}  Rd2+ {[%clk 0:01:59]} 62. Ke5 {[%clk 0:10:05]}  Re2+ {[%clk 0:01:58]} 1/2-1/2

[Event "2026 European Womens Championship"]
[Site "Batumi, GE"]
[Date "2026.06.02"]
[Round "8"]
[White "Bulmaga, Irina"]
[Black "Aydin, Gulenay"]
[Result "1-0"]
[Board "20"]
[TimeControl "5400+30"]
[WhiteFideId "13903063"]
[BlackFideId "34557431"]
[WhiteElo "2361"]
[BlackElo "2204"]
[WhiteTitle "IM"]
[BlackTitle "WIM"]
[WhiteClock "0:02:53"]
[BlackClock "0:02:19"]
[Variant "Standard"]

1. e4 {[%clk 1:30:57]}  d6 {[%clk 1:27:21]} 2. d4 {[%clk 1:31:21]}  Nf6 {[%clk 1:27:36]} 3. Nc3 {[%clk 1:31:44]}  e5 {[%clk 1:27:59]}
4. Nf3 {[%clk 1:32:06]}  Nbd7 {[%clk 1:28:22]} 5. Rg1 {[%clk 1:32:28]}  c6 {[%clk 1:28:45]} 6. g4 {[%clk 1:32:45]}  g6 {[%clk 1:29:09]}
7. g5 {[%clk 1:32:24]}  Nh5 {[%clk 1:29:36]} 8. Be3 {[%clk 1:32:44]}  Be7 {[%clk 1:29:48]} 9. Qd2 {[%clk 1:32:25]}  O-O {[%clk 1:29:53]}
10. O-O-O {[%clk 1:32:38]}  b5 {[%clk 1:29:42]} 11. a3 {[%clk 1:30:28]}  Rb8 {[%clk 1:28:49]} 12. dxe5 {[%clk 1:26:05]}  dxe5 {[%clk 1:28:40]}
13. Bh3 {[%clk 1:25:12]}  Qc7 {[%clk 1:17:52]} 14. Bxd7 {[%clk 1:02:15]}  Rd8 {[%clk 1:17:53]} 15. Nxe5 {[%clk 0:54:07]}  Qxe5 {[%clk 1:01:41]}
16. Bd4 {[%clk 0:53:54]}  Qc7 {[%clk 0:50:39]} 17. Bxc8 {[%clk 0:53:09]}  Rbxc8 {[%clk 0:47:30]} 18. Qe3 {[%clk 0:34:31]}  b4 {[%clk 0:41:48]}
19. axb4 {[%clk 0:33:36]}  Bxb4 {[%clk 0:42:10]} 20. Ne2 {[%clk 0:27:18]}  Qa5 {[%clk 0:39:31]} 21. Kb1 {[%clk 0:27:31]}  c5 {[%clk 0:30:16]}
22. Bc3 {[%clk 0:24:35]}  Re8 {[%clk 0:30:28]} 23. Bxb4 {[%clk 0:20:10]}  Qxb4 {[%clk 0:28:37]} 24. f3 {[%clk 0:20:04]}  Re6 {[%clk 0:27:21]}
25. Qb3 {[%clk 0:16:04]}  Qa5 {[%clk 0:27:28]} 26. Rd7 {[%clk 0:13:32]}  Rf8 {[%clk 0:27:21]} 27. Rgd1 {[%clk 0:09:57]}  Ra6 {[%clk 0:17:00]}
28. c3 {[%clk 0:10:18]}  Rb6 {[%clk 0:16:02]} 29. Qc4 {[%clk 0:10:21]}  Qa3 {[%clk 0:13:00]} 30. Qa2 {[%clk 0:07:26]}  Qxa2+ {[%clk 0:08:25]}
31. Kxa2 {[%clk 0:07:55]}  Ra6+ {[%clk 0:08:07]} 32. Kb1 {[%clk 0:08:17]}  f6 {[%clk 0:07:24]} 33. gxf6 {[%clk 0:08:44]}  Rfxf6 {[%clk 0:06:27]}
34. R1d3 {[%clk 0:08:10]}  c4 {[%clk 0:06:30]} 35. Rd8+ {[%clk 0:08:25]}  Kg7 {[%clk 0:06:21]} 36. R3d7+ {[%clk 0:08:33]}  Kh6 {[%clk 0:06:26]}
37. Nd4 {[%clk 0:08:15]}  Rf4 {[%clk 0:03:52]} 38. Rd6 {[%clk 0:07:08]}  Ra4 {[%clk 0:04:14]} 39. Nf5+ {[%clk 0:07:06]}  Kg5 {[%clk 0:04:00]}
40. h4+ {[%clk 0:07:30]}  Rxh4 {[%clk 0:03:30]} 41. Nxh4 {[%clk 0:07:55]}  Kxh4 {[%clk 0:03:57]} 42. e5 {[%clk 0:05:50]}  Kg5 {[%clk 0:02:19]}
43. e6 {[%clk 0:02:53]} 1-0